bitfinex/quotes_BTCUSD_20230108
["timestamp","ask_amount","ask_price","bid_price","bid_amount"]
[1673208282716,0.26712394,16942.0,16941.0,1.34030998]
[1673208284497,0.53213398,16942.0,16941.0,1.34030998]
[1673208285292,0.53213398,16942.0,16941.0,1.70866898]
[1673208286301,0.53213398,16942.0,16941.0,1.34030998]
[1673208287559,0.53213398,16942.0,16941.0,0.8299888]
[1673208289855,0.88503302,16942.0,16941.0,1.36102098]
[1673208290349,0.53213398,16942.0,16941.0,1.36102098]
[1673208290639,0.88503302,16942.0,16941.0,1.36102098]
[1673208290857,0.88503302,16942.0,16941.0,0.8299888]
[1673208290858,0.70827834,16942.0,16941.0,0.8299888]
[1673208291391,0.70827834,16942.0,16941.0,1.36096627]
[1673208292349,0.70827834,16942.0,16941.0,0.8299888]
[1673208292859,0.70827834,16942.0,16941.0,1.36079444]
[1673208293166,0.88528154,16942.0,16941.0,1.36079444]
[1673208293650,0.70827834,16942.0,16941.0,1.36079444]
[1673208294453,0.88528356,16942.0,16941.0,1.36079444]
[1673208294667,0.53239785,16942.0,16941.0,1.36079444]
[1673208295162,0.53239785,16942.0,16941.0,1.72915344]
[1673208295679,0.53239785,16942.0,16941.0,1.36079444]
[1673208296172,0.53239785,16942.0,16941.0,1.72915344]
[1673208296663,0.53239785,16942.0,16941.0,1.36079444]
[1673208296923,0.70827834,16942.0,16941.0,1.36079444]
[1673208298185,0.88532966,16942.0,16941.0,1.36079444]
[1673208298653,0.70827834,16942.0,16941.0,1.36079444]
[1673208299128,0.70827834,16942.0,16941.0,1.72915344]
[1673208300944,0.70827834,16942.0,16941.0,1.36079444]
[1673208302486,0.70827834,16942.0,16941.0,1.72915344]
[1673208303272,0.70827834,16942.0,16941.0,2.31943644]
[1673208303531,0.52397544,16942.0,16941.0,2.90971944]
[1673208304060,0.2589654,16942.0,16941.0,3.08609068]
[1673208304824,0.2589654,16942.0,16941.0,5.11357452]
[1673208304825,0.08186926,16942.0,16941.0,5.11357452]
[1673208304827,0.08186926,16942.0,16941.0,4.70018373]
[1673208305087,0.08186926,16942.0,16941.0,4.52400475]
[1673208305955,0.08186926,16942.0,16941.0,3.08680391]
[1673208306385,0.08186926,16942.0,16941.0,2.90971944]
[1673208306635,0.2589654,16942.0,16941.0,2.90971944]
[1673208308951,0.52397544,16942.0,16941.0,2.90971944]
[1673208309203,0.2589654,16942.0,16941.0,2.90971944]
[1673208316428,0.2589654,16942.0,16941.0,3.20484944]
[1673208317985,0.08186926,16942.0,16941.0,3.20484944]
[1673208318495,0.2589654,16942.0,16941.0,3.20484944]
[1673208318743,0.08186926,16942.0,16941.0,3.20484944]
[1673208319264,0.2589654,16942.0,16941.0,3.20484944]
[1673208319524,0.08186926,16942.0,16941.0,3.20484944]
[1673208320029,0.2589654,16942.0,16941.0,3.20484944]
[1673208320528,0.08186926,16942.0,16941.0,3.20484944]
[1673208322865,0.08186926,16942.0,16941.0,2.90971944]
[1673208323114,0.08186926,16942.0,16941.0,3.20484944]
[1673208323644,0.2589654,16942.0,16941.0,3.20484944]
[1673208324172,0.2589654,16942.0,16941.0,2.83650044]
[1673208324650,0.2589654,16942.0,16941.0,3.20485944]
[1673208327690,0.2589654,16942.0,16941.0,2.83650044]
[1673208328223,0.2589654,16942.0,16941.0,3.20485944]
[1673208328721,0.2589654,16942.0,16941.0,2.83650044]
[1673208328982,0.2589654,16942.0,16941.0,3.20485944]
[1673208333084,0.2589654,16942.0,16941.0,3.20484944]
[1673208338604,0.08186926,16942.0,16941.0,3.38193391]
[1673208338844,0.2589654,16942.0,16941.0,3.38193391]
[1673208339864,0.08186926,16942.0,16941.0,3.38193391]
[1673208340108,0.2589654,16942.0,16941.0,3.38193391]
[1673208341727,0.08186926,16942.0,16941.0,3.38193391]
[1673208343967,0.2589654,16942.0,16941.0,3.38193391]
[1673208344222,0.08186926,16942.0,16941.0,3.38193391]
[1673208344927,0.2589654,16942.0,16941.0,3.38193391]
[1673208346242,0.08186926,16942.0,16941.0,4.51913158]
[1673208346493,0.08186926,16942.0,16941.0,4.81913158]
[1673208350264,0.08186926,16942.0,16941.0,4.51913158]
[1673208352716,0.08186926,16942.0,16941.0,4.81913158]
[1673208354270,0.08186926,16942.0,16941.0,4.51913158]
[1673208355223,0.08186926,16942.0,16941.0,4.81913158]
[1673208358088,0.08186926,16942.0,16941.0,4.81912025]
[1673208358599,0.08186926,16942.0,16941.0,4.81912341]
[1673208359115,0.08186926,16942.0,16941.0,3.9468715]
[1673208359841,0.08186926,16942.0,16941.0,4.81910734]
[1673208360641,0.08186926,16942.0,16941.0,5.40939034]
[1673208365662,0.08186926,16942.0,16941.0,4.5371545]
[1673208366009,0.08186926,16942.0,16941.0,4.2371545]
[1673208366426,0.08186926,16942.0,16941.0,4.5371545]
[1673208367741,0.08186926,16942.0,16941.0,3.60384791]
[1673208367992,0.2589654,16942.0,16941.0,2.83648044]
[1673208370552,0.2589654,16942.0,16941.0,2.83649044]
[1673208381497,0.2589654,16942.0,16941.0,2.54136044]
[1673208381752,0.2589654,16942.0,16941.0,2.83649044]
[1673208384479,0.08186926,16942.0,16941.0,3.01357491]
[1673208384952,0.08186926,16942.0,16941.0,3.38193391]
[1673208387044,0.08186926,16942.0,16941.0,3.6468815]
[1673208387195,0.08186926,16942.0,16941.0,3.38193391]
[1673208389249,0.08186926,16942.0,16941.0,3.38192391]
[1673208389504,0.08186926,16942.0,16941.0,3.6468715]
[1673208389764,0.08186926,16942.0,16941.0,3.38192391]
[1673208392930,0.08186926,16942.0,16941.0,3.01356491]
[1673208393187,0.08186926,16942.0,16941.0,3.60384791]
[1673208393460,0.08186926,16942.0,16941.0,3.97220691]
[1673208393964,0.08186926,16942.0,16941.0,3.60384791]
[1673208398961,0.2589654,16942.0,16941.0,3.42676344]
[1673208399244,0.2589654,16942.0,16941.0,2.83648044]
[1673208400537,0.2589654,16942.0,16941.0,2.83649044]
[1673208403331,0.52397544,16942.0,16941.0,2.83649044]
[1673208403606,0.89233444,16942.0,16941.0,2.83649044]
[1673208411811,0.2589654,16942.0,16941.0,2.83649044]
[1673208412056,0.6273244,16942.0,16941.0,2.83649044]
[1673208412396,0.2589654,16942.0,16941.0,2.83649044]
[1673208413632,0.89233444,16942.0,16941.0,2.83649044]
[1673208413878,0.6273244,16942.0,16941.0,2.83649044]
[1673208414092,0.89233444,16942.0,16941.0,2.83649044]
[1673208414604,0.6273244,16942.0,16941.0,2.83649044]
[1673208415101,0.52397544,16942.0,16941.0,2.83649044]
[1673208415354,0.89233444,16942.0,16941.0,2.83649044]
[1673208417105,0.89233444,16942.0,16941.0,1.65592444]
[1673208417342,0.89233444,16942.0,16941.0,2.83649044]
[1673208417585,0.52397544,16942.0,16941.0,2.83649044]
[1673208422609,0.2589654,16942.0,16941.0,2.83649044]
[1673208422853,0.52397544,16942.0,16941.0,2.83649044]
[1673208425925,0.52397544,16942.0,16941.0,2.54136044]
[1673208426170,0.52397544,16942.0,16941.0,2.83649044]
[1673208429106,0.52397544,16942.0,16941.0,2.83643572]
[1673208432529,0.87687448,16942.0,16941.0,2.83643572]
[1673208432827,0.52397544,16942.0,16941.0,2.83643572]
[1673208433049,0.87687448,16942.0,16941.0,1.42015471]
[1673208433328,0.69977834,16942.0,16941.0,1.42015471]
[1673208433560,0.69977834,16942.0,16941.0,1.42005471]
[1673208435063,0.69977834,16942.0,16941.0,1.95108689]
[1673208437614,0.69977834,16942.0,16941.0,1.42005471]
[1673208437895,0.69977834,16942.0,16941.0,1.95108689]
[1673208440053,0.69977834,16942.0,16941.0,2.24622689]
[1673208443602,0.87685648,16942.0,16941.0,2.24622689]
[1673208443843,0.87685669,16942.0,16941.0,2.24622689]
[1673208445070,0.52395765,16942.0,16941.0,2.24622689]
[1673208445342,0.87685669,16942.0,16941.0,2.24622689]
[1673208445607,0.52395765,16942.0,16941.0,2.24622689]
[1673208448404,0.52395765,16942.0,16941.0,2.61458589]
[1673208448670,0.25894761,16942.0,16941.0,3.01359436]
[1673208448930,0.08186926,16942.0,16941.0,3.01359436]
[1673208449430,0.08186926,16942.0,16941.0,3.38195336]
[1673208449933,0.08186926,16942.0,16941.0,3.01359436]
[1673208450438,0.08186926,16942.0,16941.0,3.0689139]
[1673208452235,0.08186926,16942.0,16941.0,2.89182943]
[1673208452494,0.25894761,16942.0,16941.0,2.89182943]
[1673208457337,0.08186926,16942.0,16941.0,2.89182943]
[1673208457821,0.25894761,16942.0,16941.0,2.89182943]
[1673208459106,0.52395765,16942.0,16941.0,1.47537425]
[1673208459378,1.72422311,16942.0,16941.0,0.81830254]
[1673208459705,1.72422311,16942.0,16941.0,0.22801954]
[1673208459882,2.16534691,16942.0,16941.0,0.22801954]
[1673208460157,1.90033687,16942.0,16941.0,0.05531954]
[1673208460880,2.16584495,16942.0,16941.0,0.05531954]
[1673208462156,1.90033687,16942.0,16941.0,0.05521029]
[1673208463186,0.8758921,16942.0,16941.0,0.57925864]
[1673208463439,0.52435876,16942.0,16941.0,0.57925864]
[1673208464471,0.52435876,16942.0,16941.0,1.11029082]
[1673208465716,0.25886506,16942.0,16941.0,1.11029082]
[1673208465960,0.52435876,16942.0,16941.0,1.11029082]
[1673208466224,0.25886506,16942.0,16941.0,1.11029082]
[1673208471489,0.52435876,16942.0,16941.0,1.11029082]
[1673208473884,0.52435876,16942.0,16941.0,0.57925864]
[1673208475084,0.52435876,16942.0,16941.0,1.11029082]
[1673208478678,0.52435876,16942.0,16941.0,0.57925864]
[1673208479192,0.52435876,16942.0,16941.0,1.11029082]
[1673208483580,0.25886506,16942.0,16941.0,1.11029082]
[1673208483838,0.25886506,16942.0,16941.0,1.28459082]
[1673208484321,0.52435876,16942.0,16941.0,1.28459082]
[1673208485819,0.25886506,16942.0,16941.0,1.28459082]
[1673208486328,0.52435876,16942.0,16941.0,1.28459082]
[1673208486889,0.25886506,16942.0,16941.0,1.28459082]
[1673208487119,0.25886506,16942.0,16941.0,1.65294982]
[1673208487374,0.25886506,16942.0,16941.0,1.28459082]
[1673208488871,0.52435876,16942.0,16941.0,0.75355864]
[1673208489131,0.700262,16942.0,16941.0,0.75355864]
[1673208491087,0.700262,16942.0,16941.0,1.28459082]
[1673208491594,0.52439671,16942.0,16941.0,1.28459082]
[1673208492605,0.87729575,16942.0,16941.0,1.28459082]
[1673208492858,0.52440479,16942.0,16941.0,1.28459082]
[1673208495406,0.87730383,16942.0,16941.0,1.28459082]
[1673208495661,0.52440479,16942.0,16941.0,1.28459082]
[1673208498463,0.25891109,16942.0,16941.0,1.28459082]
[1673208498726,0.25891109,16942.0,16941.0,2.24323282]
[1673208501346,0.52440479,16942.0,16941.0,2.24323282]
[1673208502072,0.25891109,16942.0,16941.0,2.24323282]
[1673208502547,0.26668112,16942.0,16941.0,2.24323282]
[1673208503062,0.53217482,16942.0,16941.0,2.24323282]
[1673208503840,0.26668112,16942.0,16941.0,2.06893282]
[1673208504582,0.25891109,16942.0,16941.0,2.06893282]
[1673208506618,0.52440479,16942.0,16941.0,2.06893282]
[1673208507146,0.52440479,16942.0,16941.0,1.70057382]
[1673208508129,0.700262,16942.0,16941.0,1.70057382]
[1673208508388,0.88549221,16942.0,16941.0,1.70057382]
[1673208508859,0.53259317,16942.0,16941.0,1.70057382]
[1673208512128,0.88549221,16942.0,16941.0,1.70057382]
[1673208512633,0.53259317,16942.0,16941.0,1.70057382]
[1673208513921,0.53259317,16942.0,16941.0,1.87367382]
[1673208514452,0.88549221,16942.0,16941.0,1.87367382]
[1673208514694,0.70840203,16942.0,16941.0,1.87367382]
[1673208514930,0.53259412,16942.0,16941.0,2.24203282]
[1673208518788,0.26710042,16942.0,16941.0,2.24203282]
[1673208519764,0.53259412,16942.0,16941.0,2.24203282]
[1673208520275,0.26710042,16942.0,16941.0,2.24203282]
[1673208520804,0.53259412,16942.0,16941.0,2.24203282]
[1673208521062,0.53259412,16942.0,16941.0,1.87367382]
[1673208522074,0.53259412,16942.0,16941.0,2.24203282]
[1673208522554,0.53259412,16942.0,16941.0,1.87367382]
[1673208523147,0.53259412,16942.0,16941.0,2.24203282]
[1673208526569,0.88549316,16942.0,16941.0,2.24203282]
[1673208526823,0.53259412,16942.0,16941.0,2.24203282]
[1673208527574,0.70840203,16942.0,16941.0,1.87367382]
[1673208529523,0.88548961,16942.0,16941.0,1.87367382]
[1673208529677,0.53259057,16942.0,16941.0,1.87367382]
[1673208533540,0.88548961,16942.0,16941.0,1.87367382]
[1673208534058,0.53259057,16942.0,16941.0,1.87367382]
[1673208534343,0.53259057,16942.0,16941.0,2.24203282]
[1673208535116,0.88548961,16942.0,16941.0,2.24203282]
[1673208535367,0.88548961,16942.0,16941.0,1.87367382]
[1673208536426,0.53259057,16942.0,16941.0,1.87367382]
[1673208536672,0.53259057,16942.0,16941.0,2.24203282]
[1673208537734,0.53259057,16942.0,16941.0,1.87367382]
[1673208537966,0.53259057,16942.0,16941.0,2.24203282]
[1673208545262,0.26709687,16942.0,16941.0,2.363907]
[1673208545529,0.26709687,16942.0,16941.0,2.18682253]
[1673208545997,0.26709687,16942.0,16941.0,2.95419]
[1673208549060,0.09000929,16942.0,16941.0,2.95419]
[1673208549806,0.09000929,16942.0,16941.0,3.25419]
[1673208550798,0.09000929,16942.0,16941.0,2.95419]
[1673208551050,0.09000929,16942.0,16941.0,3.25419]
[1673208552302,0.09000929,16942.0,16941.0,3.51913759]
[1673208552554,0.09000929,16942.0,16941.0,4.39137449]
[1673208552775,0.09000929,16942.0,16941.0,4.39137511]
[1673208553041,0.09000929,16942.0,16941.0,3.25419]
[1673208553242,0.09000929,16942.0,16941.0,2.585831]
[1673208553457,0.09000929,16942.0,16941.0,2.885831]
[1673208553723,0.09000929,16942.0,16941.0,2.95419]
[1673208553981,0.09000929,16942.0,16941.0,3.25419]
[1673208554259,0.09000929,16942.0,16941.0,2.95419]
[1673208554506,0.09000929,16942.0,16941.0,2.585831]
[1673208556460,0.09000929,16942.0,16941.0,3.25419]
[1673208557984,0.09000929,16942.0,16941.0,3.51913759]
[1673208558243,0.09000929,16942.0,16941.0,3.30940057]
[1673208559552,0.09000929,16942.0,16941.0,3.57434816]
[1673208559812,0.09000929,16942.0,16941.0,4.44657683]
[1673208560608,0.09000929,16942.0,16941.0,3.30940057]
[1673208560844,0.09000929,16942.0,16941.0,2.94104157]
[1673208562396,0.09000929,16942.0,16941.0,4.44656884]
[1673208562670,0.44258128,16944.0,16942.0,0.6]
[1673208562906,0.44258128,16944.0,16943.0,2.04343035]
[1673208562907,0.17708758,16944.0,16943.0,2.04343035]
[1673208563185,0.17708758,16944.0,16943.0,2.33853035]
[1673208563428,0.17708758,16944.0,16943.0,2.92874435]
[1673208563680,0.92743128,16945.0,16944.0,0.6]
[1673208563990,0.44273128,16945.0,16944.0,1.1292003]
[1673208564505,0.17723758,16945.0,16944.0,0.6]
[1673208564767,0.28508758,16945.0,16944.0,0.607]
[1673208565031,0.28508758,16945.0,16944.0,1.1362003]
[1673208565364,0.96876513,16945.0,16944.0,0.007]
[1673208565544,1.23425883,16945.0,16944.0,0.007]
[1673208565829,1.41007029,16945.0,16944.0,0.54229435]
[1673208566350,0.72639274,16945.0,16944.0,0.54229435]
[1673208566871,0.55042642,16945.0,16944.0,0.54229435]
[1673208567668,0.28493272,16945.0,16944.0,1.14229435]
[1673208568203,0.55042642,16945.0,16944.0,1.14229435]
[1673208568460,0.55838597,16945.0,16944.0,0.54229435]
[1673208570068,1.58749048,16945.0,16944.0,0.007]
[1673208570329,1.95584948,16945.0,16944.0,0.007]
[1673208570661,1.78008161,16945.0,16944.0,0.007]
[1673208571217,1.58863755,16945.0,16944.0,0.007]
[1673208571482,1.23573573,16945.0,16944.0,0.007]
[1673208571749,0.55822764,16945.0,16944.0,0.51235125]
[1673208573566,0.29287171,16945.0,16944.0,0.51235125]
[1673208573824,0.11595955,16945.0,16944.0,0.51235125]
[1673208574087,0.11595955,16945.0,16944.0,2.30374208]
[1673208574429,0.11595955,16945.0,16944.0,3.01970108]
[1673208574669,0.11595955,16945.0,16944.0,3.88414379]
[1673208575206,0.11595955,16945.0,16944.0,3.70010727]
[1673208575207,0.00795955,16945.0,16944.0,3.70010727]
[1673208575463,0.18193856,16947.0,16944.0,3.70010727]
[1673208575752,0.18193856,16947.0,16945.0,1.96432607]
[1673208576014,0.18193856,16947.0,16946.0,0.368359]
[1673208576291,0.15981129,16947.0,16946.0,0.5220557]
[1673208576559,0.15981129,16947.0,16946.0,1.03067339]
[1673208576817,0.15981129,16947.0,16946.0,1.03067341]
[1673208577101,0.009,16947.0,16946.0,0.50869264]
[1673208577363,0.27614832,16948.0,16946.0,0.50869264]
[1673208577619,0.009,16947.0,16946.0,0.60594968]
[1673208577875,0.009,16947.0,16946.0,1.95244657]
[1673208578131,0.01079239,16948.0,16946.0,1.53850868]
[1673208578397,0.01079239,16948.0,16947.0,0.836589]
[1673208578657,0.01079239,16948.0,16947.0,1.95864704]
[1673208578928,0.01079239,16948.0,16947.0,1.93950629]
[1673208579177,0.01979239,16948.0,16947.0,1.93950629]
[1673208579447,0.01979239,16948.0,16947.0,2.76167676]
[1673208579710,0.01979239,16948.0,16947.0,2.84567676]
[1673208579970,0.01979239,16948.0,16947.0,2.54567676]
[1673208581236,0.01979239,16948.0,16947.0,2.84567676]
[1673208581241,0.01979239,16948.0,16947.0,3.54567676]
[1673208581506,0.01979239,16948.0,16947.0,3.55612602]
[1673208582282,0.01918092,16948.0,16947.0,3.55612602]
[1673208582547,0.01918092,16948.0,16947.0,3.25612602]
[1673208582809,0.01918092,16948.0,16947.0,3.55612602]
[1673208583043,0.01918092,16948.0,16947.0,4.14620002]
[1673208583823,0.01918092,16948.0,16947.0,3.63331758]
[1673208584076,0.01918092,16948.0,16947.0,4.39769158]
[1673208584315,0.01918092,16948.0,16947.0,4.99285772]
[1673208585810,0.01918092,16948.0,16947.0,4.39769158]
[1673208586378,0.01918092,16948.0,16947.0,4.98776558]
[1673208586655,0.01918092,16948.0,16947.0,5.54495403]
[1673208587137,0.01918092,16948.0,16947.0,5.24495403]
[1673208587904,0.01918092,16948.0,16947.0,4.65488003]
[1673208588406,0.01918092,16948.0,16947.0,3.36833556]
[1673208588714,0.01918092,16948.0,16947.0,3.20239332]
[1673208588927,0.01918092,16948.0,16947.0,1.91231932]
[1673208589192,0.01918092,16948.0,16947.0,1.90231932]
[1673208589956,0.01918092,16948.0,16947.0,2.19733932]
[1673208590461,0.01918092,16948.0,16947.0,3.19733932]
[1673208590711,0.01918092,16948.0,16947.0,3.68163645]
[1673208592025,0.01918092,16948.0,16947.0,3.00850987]
[1673208592297,0.01918092,16948.0,16947.0,3.77288387]
[1673208592829,1e-08,16949.0,16948.0,1.19043249]
[1673208593082,1e-08,16949.0,16948.0,3.46718292]
[1673208593324,1e-08,16949.0,16948.0,4.75722292]
[1673208594882,0.03300001,16949.0,16948.0,4.76022292]
[1673208596152,0.03300001,16949.0,16948.0,4.16979043]
[1673208596659,0.03300001,16949.0,16948.0,4.81825089]
[1673208596919,0.03300001,16949.0,16948.0,4.16979043]
[1673208597427,0.03282528,16949.0,16948.0,19.35087462]
[1673208597702,0.00190006,16950.0,16949.0,0.76747592]
[1673208597927,0.00190006,16950.0,16949.0,4.33417122]
[1673208598442,0.00190006,16950.0,16949.0,4.92417622]
[1673208599218,0.00690006,16950.0,16949.0,5.05017622]
[1673208599485,0.00690006,16950.0,16949.0,19.18506041]
[1673208599977,0.00690006,16950.0,16949.0,19.00802389]
[1673208601265,0.00690006,16950.0,16949.0,18.82828189]
[1673208601549,0.00690006,16950.0,16949.0,18.8289282]
[1673208602623,0.00690006,16950.0,16949.0,5.4650282]
[1673208602933,0.00690006,16950.0,16949.0,19.18026472]
[1673208603063,0.00622006,16950.0,16949.0,20.916886]
[1673208603568,0.00622006,16950.0,16949.0,20.04521231]
[1673208603821,0.00622006,16950.0,16949.0,20.91688158]
[1673208604155,0.00622006,16950.0,16949.0,20.04521231]
[1673208604589,0.00622006,16950.0,16949.0,20.91687656]
[1673208605368,0.00622006,16950.0,16949.0,20.04521231]
[1673208605612,0.01148148,16951.0,16950.0,13.95767994]
[1673208605881,0.01148148,16951.0,16950.0,19.00798115]
[1673208606119,0.01148148,16951.0,16950.0,19.1837755]
[1673208606393,0.01148148,16951.0,16950.0,19.00798115]
[1673208607680,0.01548148,16951.0,16950.0,5.77908115]
[1673208612721,0.01548148,16951.0,16950.0,5.48421115]
[1673208613239,0.01548148,16951.0,16950.0,5.98126323]
[1673208613763,0.01548148,16951.0,16950.0,5.48421115]
[1673208614016,0.01548148,16951.0,16950.0,5.36086212]
[1673208614815,0.01548148,16951.0,16950.0,4.88726212]
[1673208615308,0.01548148,16951.0,16950.0,4.24236348]
[1673208615822,0.01548148,16951.0,16950.0,4.86678145]
[1673208616074,0.01548148,16951.0,16950.0,4.83731348]
[1673208616339,0.01548148,16951.0,16950.0,4.54236348]
[1673208616906,0.00620185,16951.0,16950.0,5.49245783]
[1673208617122,0.00620185,16951.0,16950.0,6.92399318]
[1673208617414,0.00620185,16951.0,16950.0,7.5432227]
[1673208617669,0.01256889,16952.0,16951.0,0.16253273]
[1673208617934,0.01256889,16952.0,16951.0,19.77349599]
[1673208618204,0.01256889,16952.0,16951.0,19.94953209]
[1673208618460,0.01256889,16952.0,16951.0,20.65747091]
[1673208618719,0.01256889,16952.0,16951.0,20.64257167]
[1673208618992,0.01256889,16952.0,16951.0,19.95047272]
[1673208619246,0.01656889,16952.0,16951.0,20.08447272]
[1673208619720,0.01656889,16952.0,16951.0,19.73237167]
[1673208619728,0.01647064,16952.0,16951.0,19.29229026]
[1673208619975,0.02000934,16955.0,16951.0,22.04282359]
[1673208619976,6e-05,16955.0,16951.0,22.04282359]
[1673208620245,6e-05,16955.0,16954.0,1.41805909]
[1673208620487,6e-05,16955.0,16954.0,17.82640706]
[1673208620739,6e-05,16955.0,16954.0,18.41623806]
[1673208620996,6e-05,16955.0,16954.0,19.01018573]
[1673208621277,6e-05,16955.0,16954.0,20.14553983]
[1673208621512,0.01584116,16956.0,16954.0,19.01083185]
[1673208621767,0.01584116,16956.0,16955.0,1.33737314]
[1673208622066,0.01584116,16956.0,16955.0,3.22111681]
[1673208622320,0.01584116,16956.0,16955.0,3.39441681]
[1673208622594,0.01584116,16956.0,16955.0,2.89850267]
[1673208622849,0.00440179,16957.0,16956.0,1.09830773]
[1673208622850,0.00400001,16957.0,16956.0,1.09830773]
[1673208623109,0.00400001,16957.0,16956.0,3.7794689]
[1673208623379,0.00400001,16957.0,16956.0,2.74089083]
[1673208623910,0.00400001,16957.0,16956.0,2.56729083]
[1673208624170,0.01000001,16957.0,16956.0,2.56729083]
[1673208624965,0.01000001,16957.0,16956.0,1.37752983]
[1673208625229,0.01000001,16957.0,16956.0,0.7]
[1673208625230,1.17924065,16957.0,16956.0,0.7]
[1673208626332,1.35254065,16957.0,16956.0,0.7]
[1673208626604,2.40282185,16957.0,16956.0,0.7]
[1673208626857,2.13746592,16957.0,16956.0,0.7]
[1673208627648,1.53746592,16957.0,16956.0,0.7]
[1673208627921,1.04927065,16957.0,16956.0,0.7]
[1673208628175,1.04927065,16957.0,16955.0,0.91270864]
[1673208628176,0.68091165,16957.0,16955.0,0.91270864]
[1673208628438,0.01000001,16957.0,16956.0,0.53890776]
[1673208628948,0.01000001,16957.0,16956.0,1.03465015]
[1673208629220,0.01000001,16957.0,16956.0,0.83375776]
[1673208629475,0.01000001,16957.0,16956.0,1.33010048]
[1673208629476,0.00400001,16957.0,16956.0,1.33010048]
[1673208629733,0.00600001,16957.0,16956.0,1.53440381]
[1673208629991,0.00400001,16957.0,16956.0,1.59485]
[1673208630269,0.01000001,16957.0,16956.0,1.59485]
[1673208630537,0.65772072,16957.0,16956.0,1.59485]
[1673208630797,1.00694599,16957.0,16956.0,0.7]
[1673208631050,1.64916092,16957.0,16956.0,0.7]
[1673208631323,2.41536069,16957.0,16953.0,1.24490376]
[1673208631594,0.7825209,16956.0,16954.0,1.31293472]
[1673208631874,0.368359,16955.0,16954.0,1.31293472]
[1673208632134,0.368359,16955.0,16954.0,0.7]
[1673208632135,0.17648401,16955.0,16954.0,0.7]
[1673208632399,0.54484301,16955.0,16954.0,0.7]
[1673208632897,0.368359,16955.0,16954.0,1.51901178]
[1673208633181,0.61743994,16956.0,16954.0,1.38001178]
[1673208633182,1.09884751,16956.0,16954.0,1.38001178]
[1673208633431,0.371359,16955.0,16954.0,1.51901178]
[1673208633701,0.371359,16955.0,16954.0,0.81901178]
[1673208633958,0.003,16955.0,16954.0,0.81901178]
[1673208634490,0.17948401,16956.0,16954.0,0.8196579]
[1673208634760,1.34655118,16957.0,16955.0,0.89487]
[1673208635015,1.34655118,16957.0,16955.0,1.49185298]
[1673208635016,1.61179756,16957.0,16955.0,1.49185298]
[1673208635328,1.61179756,16957.0,16955.0,1.98809715]
[1673208635329,0.68357447,16957.0,16955.0,1.98809715]
[1673208635589,0.003,16956.0,16955.0,1.98809715]
[1673208635839,0.00389046,16957.0,16955.0,3.27789315]
[1673208636101,0.00589046,16957.0,16956.0,0.368359]
[1673208636358,0.00589046,16957.0,16956.0,0.86494676]
[1673208636635,0.00589046,16957.0,16956.0,0.49658776]
[1673208636894,0.00589046,16957.0,16956.0,1.19658776]
[1673208637159,0.00589046,16957.0,16956.0,2.45470776]
[1673208637596,0.00389046,16957.0,16956.0,2.45470776]
[1673208637794,0.00989046,16957.0,16956.0,2.80230776]
[1673208638227,0.00989046,16957.0,16956.0,2.15470776]
[1673208638499,0.00989046,16957.0,16956.0,3.38679563]
[1673208638500,0.00389046,16957.0,16956.0,3.38679563]
[1673208639493,0.00789046,16957.0,16956.0,3.52479563]
[1673208639495,0.00789046,16957.0,16956.0,3.02820787]
[1673208640023,0.00789046,16957.0,16956.0,2.52184887]
[1673208640024,0.00389046,16957.0,16956.0,2.52184887]
[1673208640281,0.00789046,16957.0,16956.0,2.65984887]
[1673208640551,0.00789046,16957.0,16956.0,3.15619456]
[1673208640802,0.00789046,16957.0,16956.0,2.65984887]
[1673208641331,0.00789046,16957.0,16956.0,2.66049492]
[1673208641596,0.00789046,16957.0,16956.0,3.15680431]
[1673208641863,0.00078916,16957.0,16956.0,3.52516331]
[1673208642376,0.00078916,16957.0,16956.0,3.15680431]
[1673208642891,0.00078916,16957.0,16956.0,3.52516331]
[1673208643402,0.00078916,16957.0,16956.0,3.55747488]
[1673208643911,0.00078916,16957.0,16956.0,2.88283644]
[1673208644163,0.00078916,16957.0,16956.0,3.54557593]
[1673208644678,0.00078916,16957.0,16956.0,3.18283644]
[1673208645493,0.00064968,16957.0,16956.0,3.18283644]
[1673208646302,0.00064968,16957.0,16956.0,3.78511994]
[1673208646554,0.00064968,16957.0,16956.0,3.18283644]
[1673208647070,0.00064968,16957.0,16956.0,3.77259744]
[1673208647591,0.00064968,16957.0,16956.0,4.13639655]
[1673208647849,0.17648401,16959.0,16957.0,0.6]
[1673208648103,1.14470078,16959.0,16957.0,1.93295269]
[1673208648409,1.04219894,16958.0,16957.0,1.33295269]
[1673208648664,0.77684301,16958.0,16957.0,1.33295269]
[1673208648932,0.77684301,16958.0,16957.0,1.47095269]
[1673208649439,0.54484301,16958.0,16957.0,1.47095269]
[1673208649694,0.17648401,16958.0,16957.0,1.47095269]
[1673208649950,0.17648401,16958.0,16957.0,0.63295269]
[1673208650194,0.54784301,16958.0,16957.0,0.77095269]
[1673208650708,0.54784301,16958.0,16957.0,0.138]
[1673208651056,0.81319894,16958.0,16957.0,0.138]
[1673208651749,1.5104652,16958.0,16957.0,0.138]
[1673208652025,2.40042507,16958.0,16957.0,0.138]
[1673208652335,2.03206607,16958.0,16957.0,0.138]
[1673208652581,2.63721803,16958.0,16957.0,0.138]
[1673208652843,2.63421803,16958.0,16955.0,0.53339006]
[1673208653104,0.17654065,16956.0,16955.0,0.53339006]
[1673208653362,0.54489965,16956.0,16955.0,0.53339006]
[1673208653906,0.17654065,16956.0,16955.0,0.53339006]
[1673208654187,0.17654065,16956.0,16955.0,0.65739006]
[1673208657058,0.44135162,16956.0,16955.0,0.65739006]
[1673208658078,0.44135162,16956.0,16955.0,0.124]
[1673208658584,1.39947162,16956.0,16955.0,0.124]
[1673208658949,2.28911885,16956.0,16955.0,0.124]
[1673208659099,1.93603755,16956.0,16955.0,0.124]
[1673208659358,2.1175782,16956.0,16955.0,0.124]
[1673208660127,1.7644969,16956.0,16955.0,0.124]
[1673208660646,0.96312,16956.0,16955.0,0.7780609]
[1673208660875,0.005,16956.0,16955.0,0.7780609]
[1673208661672,0.0047395,16956.0,16955.0,1.27244351]
[1673208661917,0.0047395,16956.0,16955.0,1.97244351]
[1673208662156,0.0047395,16956.0,16955.0,2.63569251]
[1673208662691,0.0047395,16956.0,16955.0,2.87142761]
[1673208662941,0.0047395,16956.0,16955.0,3.39179061]
[1673208663178,0.0047395,16956.0,16955.0,4.13641467]
[1673208664491,0.0047395,16956.0,16955.0,3.46122361]
[1673208664724,0.0047395,16956.0,16955.0,3.64540843]
[1673208665530,0.0047395,16956.0,16955.0,3.46122361]
[1673208666074,0.0047395,16956.0,16955.0,4.11824204]
[1673208666636,0.0047395,16956.0,16955.0,3.15499304]
[1673208666890,0.0047395,16956.0,16955.0,2.66125652]
[1673208667146,0.0047395,16956.0,16955.0,2.66061043]
[1673208667405,0.0047395,16956.0,16955.0,2.07081443]
[1673208667649,0.0047395,16956.0,16955.0,1.48101843]
[1673208667650,0.18131836,16956.0,16955.0,1.48101843]
[1673208667916,1.14301146,16956.0,16955.0,0.824]